[Event "Titled Tuesday Blitz May 23 Early 2023"]
[White "Ginzburg, Yakov"]
[Black "Melikhov, Evgeny V."]
[WhiteFideId "4157176"]
[BlackFideId "4122046"]
[WhiteElo "2305"]
[BlackElo "2158"]
[Result "1/2-1/2"]
[Round "10"]
[TimeControl "180+2"]
[Date "2023.05.23"]
[WhiteClock "0:00:07"]
[BlackClock "0:00:08"]

1. e4 {[%clk 0:02:59]}  e5 {[%clk 0:02:57]} 2. Nf3 {[%clk 0:02:59]}  Nc6 {[%clk 0:02:57]} 3. Bb5 {[%clk 0:02:59]}  a6 {[%clk 0:02:57]} 4. Ba4 {[%clk 0:02:58]}  Nf6 {[%clk 0:02:57]} 5. O-O {[%clk 0:02:58]}  Nxe4 {[%clk 0:02:58]} 6. d4 {[%clk 0:02:58]}  b5 {[%clk 0:02:58]} 7. Bb3 {[%clk 0:02:58]}  d5 {[%clk 0:02:58]} 8. dxe5 {[%clk 0:02:59]}  Be6 {[%clk 0:02:59]} 9. Be3 {[%clk 0:02:59]}  Be7 {[%clk 0:02:54]} 10. Nbd2 {[%clk 0:02:59]}  O-O {[%clk 0:02:53]} 11. c3 {[%clk 0:02:36]}  Qd7 {[%clk 0:02:52]} 12. Bc2 {[%clk 0:02:34]}  f5 {[%clk 0:02:52]} 13. exf6 {[%clk 0:02:32]}  Nxf6 {[%clk 0:02:52]} 14. Re1 {[%clk 0:02:22]}  Bf5 {[%clk 0:02:48]} 15. a4 {[%clk 0:02:18]}  Bxc2 {[%clk 0:02:46]} 16. Qxc2 {[%clk 0:02:18]}  Bd6 {[%clk 0:02:40]} 17. h3 {[%clk 0:02:11]}  Rae8 {[%clk 0:02:33]} 18. axb5 {[%clk 0:02:07]}  axb5 {[%clk 0:02:33]} 19. Ra6 {[%clk 0:01:55]}  Ne5 {[%clk 0:02:26]} 20. Nxe5 {[%clk 0:01:44]}  Rxe5 {[%clk 0:02:26]} 21. Nf3 {[%clk 0:01:44]}  Rh5 {[%clk 0:02:13]} 22. Bg5 {[%clk 0:00:51]}  Ne4 {[%clk 0:02:08]} 23. Rxe4 {[%clk 0:00:50]}  dxe4 {[%clk 0:02:08]} 24. Qxe4 {[%clk 0:00:50]}  h6 {[%clk 0:01:59]} 25. Be3 {[%clk 0:00:37]}  Rhf5 {[%clk 0:01:49]} 26. Ra8 {[%clk 0:00:33]}  Rxa8 {[%clk 0:01:45]} 27. Qxa8+ {[%clk 0:00:34]}  Rf8 {[%clk 0:01:45]} 28. Qd5+ {[%clk 0:00:34]}  Kh7 {[%clk 0:01:41]} 29. Qe4+ {[%clk 0:00:27]}  Qf5 {[%clk 0:01:39]} 30. Qxf5+ {[%clk 0:00:22]}  Rxf5 {[%clk 0:01:38]} 31. Nd4 {[%clk 0:00:22]}  Rd5 {[%clk 0:01:34]} 32. b4 {[%clk 0:00:22]}  c5 {[%clk 0:01:29]} 33. bxc5 {[%clk 0:00:22]}  Bxc5 {[%clk 0:01:29]} 34. Kf1 {[%clk 0:00:13]}  Bxd4 {[%clk 0:01:29]} 35. Bxd4 {[%clk 0:00:12]}  b4 {[%clk 0:01:29]} 36. Ke2 {[%clk 0:00:10]}  b3 {[%clk 0:00:42]} 37. Kd2 {[%clk 0:00:10]}  Ra5 {[%clk 0:00:37]} 38. c4 {[%clk 0:00:09]}  Ra2+ {[%clk 0:00:32]} 39. Kc3 {[%clk 0:00:09]}  b2 {[%clk 0:00:31]} 40. Kc2 {[%clk 0:00:09]}  Ra4 {[%clk 0:00:29]} 41. Bxb2 {[%clk 0:00:08]}  Rxc4+ {[%clk 0:00:29]} 42. Kd3 {[%clk 0:00:09]}  Ra4 {[%clk 0:00:28]} 43. Bd4 {[%clk 0:00:09]}  g5 {[%clk 0:00:28]} 44. Be3 {[%clk 0:00:07]}  Kg6 {[%clk 0:00:28]} 45. Ke2 {[%clk 0:00:07]}  Kf5 {[%clk 0:00:28]} 46. Kf3 {[%clk 0:00:08]}  h5 {[%clk 0:00:28]} 47. Kg3 {[%clk 0:00:08]}  h4+ {[%clk 0:00:23]} 48. Kf3 {[%clk 0:00:08]}  Ra3 {[%clk 0:00:23]} 49. Ke2 {[%clk 0:00:08]}  Ra2+ {[%clk 0:00:22]} 50. Kf3 {[%clk 0:00:08]}  Rb2 {[%clk 0:00:21]} 51. Bd4 {[%clk 0:00:07]}  Rb3+ {[%clk 0:00:21]} 52. Be3 {[%clk 0:00:08]}  Ra3 {[%clk 0:00:21]} 53. Ke2 {[%clk 0:00:08]}  g4 {[%clk 0:00:15]} 54. hxg4+ {[%clk 0:00:08]}  Kxg4 {[%clk 0:00:15]} 55. Bc5 {[%clk 0:00:06]}  Rb3 {[%clk 0:00:15]} 56. Bd4 {[%clk 0:00:06]}  Ra3 {[%clk 0:00:14]} 57. Be3 {[%clk 0:00:06]}  Ra2+ {[%clk 0:00:14]} 58. Bd2 {[%clk 0:00:05]}  Ra1 {[%clk 0:00:11]} 59. Be1 {[%clk 0:00:05]}  Rb1 {[%clk 0:00:09]} 60. f3+ {[%clk 0:00:04]}  Kg5 {[%clk 0:00:09]} 61. Bd2+ {[%clk 0:00:05]}  Kf5 {[%clk 0:00:09]} 62. Kf2 {[%clk 0:00:04]}  Rb2 {[%clk 0:00:09]} 63. Ke3 {[%clk 0:00:05]}  Ra2 {[%clk 0:00:09]} 64. Ke2 {[%clk 0:00:04]}  Kg6 {[%clk 0:00:08]} 65. Ke3 {[%clk 0:00:04]}  Kh5 {[%clk 0:00:08]} 66. Ke2 {[%clk 0:00:04]}  Rb2 {[%clk 0:00:08]} 67. Ke3 {[%clk 0:00:04]}  Rb1 {[%clk 0:00:08]} 68. Ke2 {[%clk 0:00:04]}  Rg1 {[%clk 0:00:08]} 69. Kf2 {[%clk 0:00:05]}  Rd1 {[%clk 0:00:08]} 70. Ke2 {[%clk 0:00:05]}  Ra1 {[%clk 0:00:08]} 71. Kf2 {[%clk 0:00:06]}  Rb1 {[%clk 0:00:08]} 72. Ke2 {[%clk 0:00:06]}  Ra1 {[%clk 0:00:08]} 73. Kf2 {[%clk 0:00:07]}  Rb1 {[%clk 0:00:08]} 74. Ke3 {[%clk 0:00:07]}  Ra1 {[%clk 0:00:08]} 75. Kf2 {[%clk 0:00:07]} 1/2-1/2


[Site "https://www.chess.com"]

[Event "Titled Tuesday Blitz May 23 Early 2023"]
[White "Goswami, Vedant"]
[Black "Janaszak, Dawid"]
[WhiteFideId "5003725"]
[BlackFideId "1119206"]
[WhiteElo "2011"]
[BlackElo "2220"]
[Result "0-1"]
[Round "10"]
[TimeControl "180+2"]
[Date "2023.05.23"]
[WhiteClock "0:00:22"]
[BlackClock "0:00:58"]

1. b3 {[%clk 0:03:00]}  c5 {[%clk 0:02:57]} 2. Bb2 {[%clk 0:02:59]}  Nc6 {[%clk 0:02:57]} 3. c4 {[%clk 0:02:56]}  e5 {[%clk 0:02:57]} 4. Nf3 {[%clk 0:02:50]}  e4 {[%clk 0:02:55]} 5. Ng1 {[%clk 0:02:40]}  Nf6 {[%clk 0:02:54]} 6. Nc3 {[%clk 0:02:37]}  Be7 {[%clk 0:02:40]} 7. Qb1 {[%clk 0:02:34]}  d5 {[%clk 0:02:35]} 8. cxd5 {[%clk 0:02:33]}  Nd4 {[%clk 0:02:31]} 9. e3 {[%clk 0:02:18]}  O-O {[%clk 0:02:16]} 10. exd4 {[%clk 0:02:12]}  cxd4 {[%clk 0:02:16]} 11. Nxe4 {[%clk 0:02:11]}  Nxe4 {[%clk 0:02:16]} 12. Qxe4 {[%clk 0:02:10]}  Bf6 {[%clk 0:02:16]} 13. O-O-O {[%clk 0:02:04]}  Re8 {[%clk 0:02:14]} 14. Qf3 {[%clk 0:02:02]}  a5 {[%clk 0:02:11]} 15. Bb5 {[%clk 0:01:55]}  Re5 {[%clk 0:02:08]} 16. Ne2 {[%clk 0:01:43]}  Rxd5 {[%clk 0:01:47]} 17. Bc4 {[%clk 0:01:37]}  Rf5 {[%clk 0:01:45]} 18. Qg3 {[%clk 0:01:31]}  a4 {[%clk 0:01:39]} 19. Nxd4 {[%clk 0:01:20]}  Bxd4 {[%clk 0:01:34]} 20. Bxd4 {[%clk 0:01:19]}  Qxd4 {[%clk 0:01:35]} 21. Qc3 {[%clk 0:01:03]}  Qb6 {[%clk 0:01:21]} 22. Rhe1 {[%clk 0:00:57]}  Be6 {[%clk 0:01:21]} 23. Bxe6 {[%clk 0:00:54]}  fxe6 {[%clk 0:01:21]} 24. Kb2 {[%clk 0:00:49]}  axb3 {[%clk 0:01:16]} 25. axb3 {[%clk 0:00:48]}  Rxf2 {[%clk 0:01:06]} 26. Qc4 {[%clk 0:00:42]}  Re8 {[%clk 0:01:01]} 27. Re2 {[%clk 0:00:32]}  Rxe2 {[%clk 0:01:01]} 28. Qxe2 {[%clk 0:00:32]}  Qd4+ {[%clk 0:01:02]} 29. Kb1 {[%clk 0:00:32]}  Ra8 {[%clk 0:01:00]} 30. Qc4 {[%clk 0:00:26]}  Ra1+ {[%clk 0:00:56]} 31. Kc2 {[%clk 0:00:26]}  Ra2+ {[%clk 0:00:57]} 32. Kb1 {[%clk 0:00:22]}  Qa1# {[%clk 0:00:58]} 0-1


[Site "https://www.chess.com"]

[Event "Titled Tuesday Blitz May 23 Early 2023"]
[White "Khamdamova, Afruza"]
[Black "Rodriguez Santiago, Jaime"]
[WhiteFideId "14210444"]
[BlackFideId "3100898"]
[WhiteElo "2312"]
[BlackElo "2025"]
[Result "1-0"]
[Round "10"]
[TimeControl "180+2"]
[Date "2023.05.23"]
[WhiteClock "0:00:14"]
[BlackClock "0:00:05"]

1. b3 {[%clk 0:02:57]}  e5 {[%clk 0:02:59]} 2. Bb2 {[%clk 0:02:57]}  Nc6 {[%clk 0:02:59]} 3. g3 {[%clk 0:02:56]}  Bd6 {[%clk 0:02:59]} 4. Bg2 {[%clk 0:02:56]}  Nf6 {[%clk 0:02:59]} 5. Nf3 {[%clk 0:02:53]}  Qe7 {[%clk 0:02:59]} 6. O-O {[%clk 0:02:53]}  O-O {[%clk 0:02:51]} 7. d3 {[%clk 0:02:52]}  h6 {[%clk 0:02:37]} 8. Nbd2 {[%clk 0:02:52]}  Nd8 {[%clk 0:02:34]} 9. Nc4 {[%clk 0:02:51]}  Nc6 {[%clk 0:02:16]} 10. Qd2 {[%clk 0:02:38]}  b5 {[%clk 0:02:14]} 11. Nxd6 {[%clk 0:02:38]}  cxd6 {[%clk 0:02:13]} 12. Nh4 {[%clk 0:02:22]}  Bb7 {[%clk 0:02:04]} 13. Nf5 {[%clk 0:02:21]}  Qe6 {[%clk 0:02:03]} 14. Bh3 {[%clk 0:02:21]}  Kh7 {[%clk 0:01:56]} 15. e4 {[%clk 0:02:11]}  Ne7 {[%clk 0:01:20]} 16. Kg2 {[%clk 0:02:07]}  Nxf5 {[%clk 0:01:17]} 17. f3 {[%clk 0:02:02]}  g6 {[%clk 0:01:06]} 18. exf5 {[%clk 0:02:00]}  gxf5 {[%clk 0:01:06]} 19. Rae1 {[%clk 0:01:57]}  Rg8 {[%clk 0:01:00]} 20. d4 {[%clk 0:01:56]}  e4 {[%clk 0:00:51]} 21. fxe4 {[%clk 0:01:41]}  Bxe4+ {[%clk 0:00:41]} 22. Kg1 {[%clk 0:01:29]}  Ng4 {[%clk 0:00:30]} 23. d5 {[%clk 0:01:17]}  Qg6 {[%clk 0:00:28]} 24. Rf4 {[%clk 0:01:10]}  Rae8 {[%clk 0:00:19]} 25. Bxg4 {[%clk 0:00:45]}  fxg4 {[%clk 0:00:19]} 26. Rf6 {[%clk 0:00:44]}  Qg5 {[%clk 0:00:18]} 27. Rxf7+ {[%clk 0:00:44]}  Kg6 {[%clk 0:00:16]} 28. Qf2 {[%clk 0:00:35]}  Bf3 {[%clk 0:00:09]} 29. Rf6+ {[%clk 0:00:29]}  Qxf6 {[%clk 0:00:09]} 30. Bxf6 {[%clk 0:00:30]}  Rxe1+ {[%clk 0:00:08]} 31. Qxe1 {[%clk 0:00:29]}  Kxf6 {[%clk 0:00:09]} 32. Qc3+ {[%clk 0:00:29]}  Ke7 {[%clk 0:00:09]} 33. Qe3+ {[%clk 0:00:29]}  Kf7 {[%clk 0:00:08]} 34. Qxh6 {[%clk 0:00:29]}  Rg6 {[%clk 0:00:08]} 35. Qh7+ {[%clk 0:00:29]}  Rg7 {[%clk 0:00:08]} 36. Qf5+ {[%clk 0:00:29]}  Kg8 {[%clk 0:00:08]} 37. c4 {[%clk 0:00:25]}  bxc4 {[%clk 0:00:08]} 38. bxc4 {[%clk 0:00:23]}  Re7 {[%clk 0:00:09]} 39. Qg5+ {[%clk 0:00:21]}  Kf8 {[%clk 0:00:09]} 40. Qf6+ {[%clk 0:00:21]}  Rf7 {[%clk 0:00:09]} 41. Qh8+ {[%clk 0:00:20]}  Ke7 {[%clk 0:00:09]} 42. Qd4 {[%clk 0:00:15]}  Kd8 {[%clk 0:00:08]} 43. Qxa7 {[%clk 0:00:15]}  Ke7 {[%clk 0:00:08]} 44. Qd4 {[%clk 0:00:13]}  Rf8 {[%clk 0:00:08]} 45. c5 {[%clk 0:00:13]}  Rb8 {[%clk 0:00:07]} 46. cxd6+ {[%clk 0:00:14]}  Kxd6 {[%clk 0:00:06]} 47. Qf4+ {[%clk 0:00:14]}  Kxd5 {[%clk 0:00:05]} 48. Qxb8 {[%clk 0:00:14]} 1-0


[Site "https://www.chess.com"]

[Event "Titled Tuesday Blitz May 23 Early 2023"]
[White "Tarasova, Viktoriya"]
[Black "Zampronha, Wladimir Camilo"]
[WhiteFideId "4175840"]
[BlackFideId "2103087"]
[WhiteElo "2182"]
[BlackElo "2176"]
[Result "1-0"]
[Round "10"]
[TimeControl "180+2"]
[Date "2023.05.23"]
[WhiteClock "0:01:43"]
[BlackClock "0:01:19"]

1. d4 {[%clk 0:02:45]}  Nf6 {[%clk 0:02:59]} 2. c4 {[%clk 0:02:45]}  e6 {[%clk 0:02:59]} 3. Nc3 {[%clk 0:02:45]}  Bb4 {[%clk 0:02:59]} 4. Nf3 {[%clk 0:02:46]}  O-O {[%clk 0:02:57]} 5. Bg5 {[%clk 0:02:45]}  h6 {[%clk 0:02:55]} 6. Bh4 {[%clk 0:02:45]}  d5 {[%clk 0:02:53]} 7. e3 {[%clk 0:02:45]}  c5 {[%clk 0:02:52]} 8. cxd5 {[%clk 0:02:44]}  exd5 {[%clk 0:02:52]} 9. Bd3 {[%clk 0:02:45]}  Nc6 {[%clk 0:02:46]} 10. O-O {[%clk 0:02:45]}  cxd4 {[%clk 0:02:45]} 11. exd4 {[%clk 0:02:45]}  Bg4 {[%clk 0:02:44]} 12. Be2 {[%clk 0:02:45]}  Be7 {[%clk 0:02:31]} 13. h3 {[%clk 0:02:44]}  Bh5 {[%clk 0:02:30]} 14. Rc1 {[%clk 0:02:39]}  Rc8 {[%clk 0:02:29]} 15. Re1 {[%clk 0:02:37]}  Re8 {[%clk 0:02:28]} 16. Ne5 {[%clk 0:02:34]}  Bxe2 {[%clk 0:02:24]} 17. Rxe2 {[%clk 0:02:34]}  Ne4 {[%clk 0:01:59]} 18. Bxe7 {[%clk 0:02:33]}  Rxe7 {[%clk 0:01:59]} 19. Nxe4 {[%clk 0:02:15]}  Nxe5 {[%clk 0:01:33]} 20. Rxc8 {[%clk 0:01:56]}  Qxc8 {[%clk 0:01:34]} 21. Nd6 {[%clk 0:01:53]}  Nf3+ {[%clk 0:01:24]} 22. gxf3 {[%clk 0:01:47]}  Qxh3 {[%clk 0:01:19]} 23. Rxe7 {[%clk 0:01:43]} 1-0


[Site "https://www.chess.com"]

[Event "Titled Tuesday Blitz May 23 Early 2023"]
[White "Rom, Jasper"]
[Black "Topalov, Aleksandar"]
[WhiteFideId "2023733"]
[BlackFideId "925659"]
[WhiteElo "2233"]
[BlackElo "2151"]
[Result "0-1"]
[Round "10"]
[TimeControl "180+2"]
[Date "2023.05.23"]
[WhiteClock "0:00:00"]
[BlackClock "0:01:19"]

1. e4 {[%clk 0:02:54]}  e6 {[%clk 0:02:58]} 2. d4 {[%clk 0:02:54]}  d5 {[%clk 0:02:58]} 3. Bd3 {[%clk 0:02:51]}  dxe4 {[%clk 0:02:57]} 4. Bxe4 {[%clk 0:02:51]}  Nf6 {[%clk 0:02:58]} 5. Bf3 {[%clk 0:02:51]}  c5 {[%clk 0:02:58]} 6. Ne2 {[%clk 0:02:51]}  Nc6 {[%clk 0:02:58]} 7. Be3 {[%clk 0:02:51]}  e5 {[%clk 0:02:57]} 8. Bxc6+ {[%clk 0:02:49]}  bxc6 {[%clk 0:02:56]} 9. dxe5 {[%clk 0:02:49]}  Qxd1+ {[%clk 0:02:56]} 10. Kxd1 {[%clk 0:02:49]}  Ng4 {[%clk 0:02:57]} 11. Re1 {[%clk 0:02:48]}  Nxe3+ {[%clk 0:02:50]} 12. fxe3 {[%clk 0:02:47]}  Bf5 {[%clk 0:02:50]} 13. Nd2 {[%clk 0:02:42]}  O-O-O {[%clk 0:02:47]} 14. Kc1 {[%clk 0:02:42]}  Re8 {[%clk 0:02:45]} 15. Nc4 {[%clk 0:02:31]}  Be4 {[%clk 0:02:42]} 16. g3 {[%clk 0:02:15]}  Bd5 {[%clk 0:02:42]} 17. Na5 {[%clk 0:01:31]}  Rxe5 {[%clk 0:02:39]} 18. c4 {[%clk 0:01:28]}  Be4 {[%clk 0:02:30]} 19. Nc3 {[%clk 0:01:23]}  Be7 {[%clk 0:02:22]} 20. Nxe4 {[%clk 0:01:12]}  Rxe4 {[%clk 0:02:23]} 21. b3 {[%clk 0:01:13]}  Kc7 {[%clk 0:02:03]} 22. Kc2 {[%clk 0:00:48]}  Bg5 {[%clk 0:02:03]} 23. Rad1 {[%clk 0:00:38]}  Rhe8 {[%clk 0:02:02]} 24. a3 {[%clk 0:00:34]}  Bxe3 {[%clk 0:02:02]} 25. b4 {[%clk 0:00:30]}  cxb4 {[%clk 0:02:00]} 26. axb4 {[%clk 0:00:30]}  Bb6 {[%clk 0:01:51]} 27. Rxe4 {[%clk 0:00:28]}  Rxe4 {[%clk 0:01:50]} 28. Rf1 {[%clk 0:00:23]}  f6 {[%clk 0:01:48]} 29. Kd3 {[%clk 0:00:22]}  Re3+ {[%clk 0:01:45]} 30. Kd2 {[%clk 0:00:21]}  Ra3 {[%clk 0:01:42]} 31. Re1 {[%clk 0:00:19]}  Rxa5 {[%clk 0:01:36]} 32. Re7+ {[%clk 0:00:16]}  Kd6 {[%clk 0:01:36]} 33. Rxg7 {[%clk 0:00:16]}  Ra2+ {[%clk 0:01:36]} 34. Kd3 {[%clk 0:00:15]}  c5 {[%clk 0:01:29]} 35. bxc5+ {[%clk 0:00:14]}  Kxc5 {[%clk 0:01:30]} 36. Rxh7 {[%clk 0:00:14]}  Ra3+ {[%clk 0:01:29]} 37. Kc2 {[%clk 0:00:13]}  Kxc4 {[%clk 0:01:28]} 38. Rf7 {[%clk 0:00:09]}  Ra2+ {[%clk 0:01:27]} 39. Kd1 {[%clk 0:00:08]}  Rxh2 {[%clk 0:01:25]} 40. Rxf6 {[%clk 0:00:07]}  Kd3 {[%clk 0:01:25]} 41. Ke1 {[%clk 0:00:00]}  Rh1+ {[%clk 0:01:19]} 0-1


[Site "https://www.chess.com"]

[Event "Titled Tuesday Blitz May 23 Early 2023"]
[White "Zavortink, Matt"]
[Black "Yanayt, Eugene"]
[WhiteFideId "2034263"]
[BlackFideId "2020165"]
[WhiteElo "2443"]
[BlackElo "2083"]
[Result "1-0"]
[Round "10"]
[TimeControl "180+2"]
[Date "2023.05.23"]
[WhiteClock "0:00:08"]
[BlackClock "0:00:02"]

1. d4 {[%clk 0:03:00]}  Nf6 {[%clk 0:02:46]} 2. Bf4 {[%clk 0:03:00]}  c5 {[%clk 0:02:43]} 3. e3 {[%clk 0:03:00]}  cxd4 {[%clk 0:02:41]} 4. exd4 {[%clk 0:03:00]}  d5 {[%clk 0:02:41]} 5. c3 {[%clk 0:03:00]}  Nc6 {[%clk 0:02:41]} 6. Bd3 {[%clk 0:02:59]}  e6 {[%clk 0:02:41]} 7. Nd2 {[%clk 0:02:57]}  Bd6 {[%clk 0:02:41]} 8. Bg3 {[%clk 0:02:57]}  O-O {[%clk 0:02:39]} 9. Ngf3 {[%clk 0:02:57]}  h6 {[%clk 0:02:39]} 10. Qe2 {[%clk 0:02:55]}  Qc7 {[%clk 0:02:38]} 11. Bxd6 {[%clk 0:02:49]}  Qxd6 {[%clk 0:02:32]} 12. O-O {[%clk 0:02:49]}  Bd7 {[%clk 0:02:27]} 13. Ne5 {[%clk 0:02:47]}  Be8 {[%clk 0:02:22]} 14. f4 {[%clk 0:02:35]}  Nd7 {[%clk 0:02:11]} 15. Bc2 {[%clk 0:02:24]}  Rb8 {[%clk 0:02:01]} 16. Qd3 {[%clk 0:02:22]}  f5 {[%clk 0:01:59]} 17. Nxd7 {[%clk 0:02:16]}  Qxd7 {[%clk 0:01:57]} 18. Ba4 {[%clk 0:02:10]}  Qf7 {[%clk 0:01:49]} 19. Bxc6 {[%clk 0:02:08]}  bxc6 {[%clk 0:01:48]} 20. b4 {[%clk 0:02:04]}  c5 {[%clk 0:01:36]} 21. dxc5 {[%clk 0:01:42]}  Bb5 {[%clk 0:01:33]} 22. Qd4 {[%clk 0:01:42]}  Bxf1 {[%clk 0:01:32]} 23. Rxf1 {[%clk 0:01:42]}  Qf6 {[%clk 0:01:32]} 24. Nf3 {[%clk 0:01:39]}  Rbe8 {[%clk 0:01:22]} 25. Ne5 {[%clk 0:01:37]}  Qd8 {[%clk 0:01:14]} 26. a4 {[%clk 0:01:32]}  Rf6 {[%clk 0:01:10]} 27. Rd1 {[%clk 0:01:28]}  Qc7 {[%clk 0:01:03]} 28. b5 {[%clk 0:01:14]}  Ra8 {[%clk 0:00:51]} 29. c6 {[%clk 0:01:10]}  Qd6 {[%clk 0:00:49]} 30. a5 {[%clk 0:01:01]}  Kh7 {[%clk 0:00:45]} 31. Rb1 {[%clk 0:00:55]}  g5 {[%clk 0:00:41]} 32. Nd7 {[%clk 0:00:49]}  Rf7 {[%clk 0:00:34]} 33. b6 {[%clk 0:00:31]}  Qxc6 {[%clk 0:00:29]} 34. Ne5 {[%clk 0:00:29]}  Qe8 {[%clk 0:00:23]} 35. Nxf7 {[%clk 0:00:29]}  Qxf7 {[%clk 0:00:23]} 36. b7 {[%clk 0:00:29]}  Rb8 {[%clk 0:00:19]} 37. Qxa7 {[%clk 0:00:29]}  Qc7 {[%clk 0:00:19]} 38. fxg5 {[%clk 0:00:22]}  hxg5 {[%clk 0:00:18]} 39. a6 {[%clk 0:00:20]}  Qf4 {[%clk 0:00:11]} 40. Qd4 {[%clk 0:00:17]}  Qc7 {[%clk 0:00:09]} 41. a7 {[%clk 0:00:13]}  Rxb7 {[%clk 0:00:09]} 42. Ra1 {[%clk 0:00:08]}  Rb2 {[%clk 0:00:02]} 1-0


[Site "https://www.chess.com"]

[Event "Titled Tuesday Blitz May 23 Early 2023"]
[White "Afanasieva, Alexandra"]
[Black "Jakubowska, Anna"]
[WhiteFideId "34126926"]
[BlackFideId "1121952"]
[WhiteElo "1745"]
[BlackElo "2001"]
[Result "0-1"]
[Round "10"]
[TimeControl "180+2"]
[Date "2023.05.23"]
[WhiteClock "0:00:14"]
[BlackClock "0:00:13"]

1. e4 {[%clk 0:02:59]}  c5 {[%clk 0:02:59]} 2. d4 {[%clk 0:02:57]}  cxd4 {[%clk 0:02:58]} 3. c3 {[%clk 0:02:57]}  d6 {[%clk 0:02:44]} 4. cxd4 {[%clk 0:02:10]}  g6 {[%clk 0:02:42]} 5. Nc3 {[%clk 0:02:09]}  Bg7 {[%clk 0:02:40]} 6. Nf3 {[%clk 0:02:08]}  Nf6 {[%clk 0:02:37]} 7. Bg5 {[%clk 0:02:07]}  O-O {[%clk 0:02:36]} 8. Bc4 {[%clk 0:02:04]}  a6 {[%clk 0:02:33]} 9. a4 {[%clk 0:02:02]}  b6 {[%clk 0:02:26]} 10. O-O {[%clk 0:01:56]}  Bb7 {[%clk 0:02:26]} 11. Bxf6 {[%clk 0:01:56]}  Bxf6 {[%clk 0:02:24]} 12. Re1 {[%clk 0:01:55]}  Nd7 {[%clk 0:02:23]} 13. Qb3 {[%clk 0:01:53]}  e6 {[%clk 0:02:15]} 14. Rad1 {[%clk 0:01:52]}  Rc8 {[%clk 0:02:13]} 15. e5 {[%clk 0:01:45]}  Bxf3 {[%clk 0:02:10]} 16. gxf3 {[%clk 0:01:46]}  Bg7 {[%clk 0:02:09]} 17. exd6 {[%clk 0:01:41]}  Qg5+ {[%clk 0:02:06]} 18. Kf1 {[%clk 0:01:40]}  Qf4 {[%clk 0:02:06]} 19. Re4 {[%clk 0:01:35]}  Qxd6 {[%clk 0:01:58]} 20. Bxe6 {[%clk 0:01:30]}  Nf6 {[%clk 0:01:36]} 21. Bxc8 {[%clk 0:01:21]}  Rxc8 {[%clk 0:01:36]} 22. Rh4 {[%clk 0:00:56]}  Nh5 {[%clk 0:01:26]} 23. Ne4 {[%clk 0:00:51]}  Qd8 {[%clk 0:01:13]} 24. Rh3 {[%clk 0:00:41]}  Qd7 {[%clk 0:00:55]} 25. Rh4 {[%clk 0:00:33]}  Qd8 {[%clk 0:00:54]} 26. Rh3 {[%clk 0:00:33]}  Nf4 {[%clk 0:00:33]} 27. Rg3 {[%clk 0:00:29]}  Nh5 {[%clk 0:00:28]} 28. Rg1 {[%clk 0:00:24]}  Qh4 {[%clk 0:00:24]} 29. Ng5 {[%clk 0:00:20]}  Rf8 {[%clk 0:00:23]} 30. Rc1 {[%clk 0:00:19]}  Qf4 {[%clk 0:00:20]} 31. Rc8 {[%clk 0:00:17]}  Rxc8 {[%clk 0:00:18]} 32. Rg4 {[%clk 0:00:17]}  Qf6 {[%clk 0:00:15]} 33. Qe3 {[%clk 0:00:14]}  Rf8 {[%clk 0:00:14]} 34. Kg2 {[%clk 0:00:14]}  h6 {[%clk 0:00:13]} 35. Ne4 {[%clk 0:00:14]}  Qf5 {[%clk 0:00:13]} 36. Nd6 {[%clk 0:00:13]}  Qd5 {[%clk 0:00:13]} 37. Ne4 {[%clk 0:00:07]}  Qxd4 {[%clk 0:00:13]} 38. Qxd4 {[%clk 0:00:07]}  Bxd4 {[%clk 0:00:12]} 39. Nd6 {[%clk 0:00:08]}  Bg7 {[%clk 0:00:12]} 40. Nc4 {[%clk 0:00:07]}  b5 {[%clk 0:00:12]} 41. axb5 {[%clk 0:00:08]}  axb5 {[%clk 0:00:12]} 42. Nd6 {[%clk 0:00:09]}  Rb8 {[%clk 0:00:12]} 43. Rb4 {[%clk 0:00:09]}  Nf6 {[%clk 0:00:12]} 44. Rxb5 {[%clk 0:00:09]}  Rxb5 {[%clk 0:00:11]} 45. Nxb5 {[%clk 0:00:10]}  Nd5 {[%clk 0:00:12]} 46. b3 {[%clk 0:00:10]}  Nf4+ {[%clk 0:00:11]} 47. Kg3 {[%clk 0:00:10]}  Be5 {[%clk 0:00:11]} 48. Kg4 {[%clk 0:00:09]}  f5+ {[%clk 0:00:11]} 49. Kh4 {[%clk 0:00:09]}  g5+ {[%clk 0:00:11]} 50. Kg3 {[%clk 0:00:09]}  Nd3+ {[%clk 0:00:11]} 51. Kg2 {[%clk 0:00:09]}  Nc5 {[%clk 0:00:11]} 52. Na3 {[%clk 0:00:08]}  Nxb3 {[%clk 0:00:11]} 53. Nb5 {[%clk 0:00:08]}  Bb8 {[%clk 0:00:11]} 54. Na3 {[%clk 0:00:09]}  Nc5 {[%clk 0:00:10]} 55. Nc2 {[%clk 0:00:09]}  Kf7 {[%clk 0:00:11]} 56. Ne3 {[%clk 0:00:09]}  Kg6 {[%clk 0:00:10]} 57. Nd5 {[%clk 0:00:10]}  Ne6 {[%clk 0:00:11]} 58. Ne3 {[%clk 0:00:10]}  Bd6 {[%clk 0:00:11]} 59. Nc4 {[%clk 0:00:10]}  Nf4+ {[%clk 0:00:12]} 60. Kf1 {[%clk 0:00:09]}  Bc7 {[%clk 0:00:12]} 61. h3 {[%clk 0:00:09]}  Nxh3 {[%clk 0:00:12]} 62. Kg2 {[%clk 0:00:09]}  Nf4+ {[%clk 0:00:12]} 63. Kf1 {[%clk 0:00:09]}  h5 {[%clk 0:00:12]} 64. Ne3 {[%clk 0:00:10]}  h4 {[%clk 0:00:13]} 65. Nd5 {[%clk 0:00:10]}  Nxd5 {[%clk 0:00:12]} 66. Kg2 {[%clk 0:00:10]}  Nf6 {[%clk 0:00:12]} 67. f4 {[%clk 0:00:11]}  Bxf4 {[%clk 0:00:12]} 68. Kh3 {[%clk 0:00:12]}  Ne4 {[%clk 0:00:11]} 69. Kg2 {[%clk 0:00:13]}  g4 {[%clk 0:00:11]} 70. Kf1 {[%clk 0:00:12]}  h3 {[%clk 0:00:12]} 71. Kg1 {[%clk 0:00:13]}  h2+ {[%clk 0:00:12]} 72. Kh1 {[%clk 0:00:13]}  Nxf2+ {[%clk 0:00:11]} 73. Kg2 {[%clk 0:00:14]}  h1=Q+ {[%clk 0:00:12]} 74. Kxf2 {[%clk 0:00:14]}  Qf3+ {[%clk 0:00:13]} 75. Kg1 {[%clk 0:00:14]}  Be3+ {[%clk 0:00:13]} 76. Kh2 {[%clk 0:00:14]}  Qh3# {[%clk 0:00:13]} 0-1


[Site "https://www.chess.com"]